[Event "RUS-ch Women Blitz 2019"]
[Site "Sochi"]
[Date "2019.10.17"]
[Round "8.3"]
[White "Voit, Daria"]
[Black "Garifullina, Leya"]
[Result "1/2-1/2"]
[ECO "E16"]
[WhiteElo "2336"]
[BlackElo "2330"]
[Annotator "NA RC"]
[PlyCount "54"]
[EventDate "2019.10.17"]
[EventType "swiss"]
[EventCountry "RUS"]
[SourceTitle "playchess.com"]
[Source "ChessBase"]
[SourceQuality "1"]
[TimeControl "180+2"]

1. d4 {[%emt 0:00:00]} Nf6 {[%emt 0:00:00]} 2. Nf3 {[%emt 0:00:00]} e6 {[%emt 0:00:00]} 3. c4 {[%emt 0:00:01]} b6 {[%emt 0:00:01]} 4. g3 {[%emt 0:00:02]} Bb7 {[%emt 0:00:00]} 5. Bg2 {[%emt 0:00:01]} Bb4+ {[%emt 0:00:01]} 6. Bd2 {[%emt 0:00:01]} Be7 {[%emt 0:00:01]} 7. O-O {[%emt 0:00:03]} O-O {[%emt 0:00:02]} 8. Nc3 {[%emt 0:00:04]} c6 {[%emt 0:00:01]} 9. Qc2 {[%emt 0:00:13]} d5 {[%emt 0:00:02]} 10. Ne5 {[%emt 0:00:02]} Nbd7 {[%emt 0:00:07]} 11. Bf4 {[%emt 0:00:03]} Nh5 {[%emt 0:00:12]} 12. Bc1 {[%emt 0:00:26]} Nhf6 {[%emt 0:00:02]} 13. Rd1 {[%emt 0:00:03]} Rc8 {[%emt 0:00:15]} 14. Qa4 {[%emt 0:00:11]} a6 {[%emt 0:00:03]} 15. e4 {[%emt 0:00:18]} b5 {[%emt 0:00:08]} 16. cxb5 {[%emt 0:00:04]} cxb5 {[%emt 0:00:01]} 17. Qb3 {[%emt 0:00:04]} dxe4 {[%emt 0:00:05]} 18. Bg5 {[%emt 0:00:10]} h6 {[%emt 0:00:09]} 19. Nxd7 {[%emt 0:00:07]} Nxd7 {[%emt 0:00:48]} 20. Bxe7 {[%emt 0:00:07]} Qxe7 {[%emt 0:00:02]} 21. Bxe4 {[%emt 0:00:04]} Bxe4 {[%emt 0:00:11]} 22. Nxe4 {[%emt 0:00:01]} Rc4 {[%emt 0:00:03]} 23. a4 {[%emt 0:00:14]} Rb4 {[%emt 0:00:20]} 24. Qc2 {[%emt 0:00:02]} Rc4 {[%emt 0:00:26]} 25. Qb3 {[%emt 0:00:01]} Rb4 {[%emt 0:00:01]} 26. Qc2 {[%emt 0:00:02]} Rc4 {[%emt 0:00:07]} 27. Qb3 {[%emt 0:00:38]} Rb4 {[%emt 0:00:01]} 1/2-1/2

[Event "RUS-ch Women Blitz 2019"]
[Site "Sochi"]
[Date "2019.10.17"]
[Round "8.5"]
[White "Bodnaruk, Anastasia"]
[Black "Shafigullina, Zarina"]
[Result "1-0"]
[ECO "B20"]
[WhiteElo "2419"]
[BlackElo "2295"]
[Annotator "RC"]
[PlyCount "109"]
[EventDate "2019.10.17"]
[EventType "swiss"]
[EventCountry "RUS"]
[SourceTitle "playchess.com"]
[Source "ChessBase"]
[SourceQuality "1"]
[TimeControl "180+2"]

1. e4 {[%emt 0:00:00]} c5 {[%emt 0:00:00]} 2. b3 {[%emt 0:00:00]} d5 {[%emt 0:00:03]} 3. exd5 {[%emt 0:00:14]} Qxd5 {[%emt 0:00:01]} 4. Nc3 {[%emt 0:00:01]} Qe5+ {[%emt 0:00:09]} 5. Qe2 {[%emt 0:00:22]} Qxe2+ {[%emt 0:00:02]} 6. Ngxe2 {[%emt 0:00:05]} Bf5 {[%emt 0:00:11]} 7. Nd5 {[%emt 0:00:08]} Kd8 {[%emt 0:00:12]} 8. Ne3 {[%emt 0:00:09]} Bd7 {[%emt 0:00:03]} 9. Bb2 {[%emt 0:00:01]} Nf6 {[%emt 0:00:02]} 10. O-O-O {[%emt 0:00:03]} Nc6 {[%emt 0:00:01]} 11. d4 {[%emt 0:00:04]} cxd4 {[%emt 0:00:03]} 12. Nxd4 {[%emt 0:00:01]} Kc8 {[%emt 0:00:15]} 13. Bc4 {[%emt 0:00:09]} e6 {[%emt 0:00:03]} 14. Rhe1 {[%emt 0:00:20]} a6 {[%emt 0:00:06]} 15. a4 {[%emt 0:00:02]} Nxd4 {[%emt 0:00:07]} 16. Bxd4 {[%emt 0:00:03]} b5 {[%emt 0:00:13]} 17. axb5 {[%emt 0:00:11]} axb5 {[%emt 0:00:01]} 18. Bf1 {[%emt 0:00:01]} Bb4 {[%emt 0:00:05]} 19. c3 {[%emt 0:00:10]} Be7 {[%emt 0:00:09]} 20. Kb2 {[%emt 0:00:04]} Bc6 {[%emt 0:00:03]} 21. f3 {[%emt 0:00:05]} Kb7 {[%emt 0:00:09]} 22. Nc2 {[%emt 0:00:03]} Rhd8 {[%emt 0:00:06]} 23. Ra1 {[%emt 0:00:05]} Rxa1 {[%emt 0:00:07]} 24. Rxa1 {[%emt 0:00:02]} Ra8 {[%emt 0:00:08]} 25. Rxa8 {[%emt 0:00:08]} Kxa8 {[%emt 0:00:01]} 26. b4 {[%emt 0:00:01]} Kb7 {[%emt 0:00:25]} 27. Be5 {[%emt 0:00:13]} Ne8 {[%emt 0:00:05]} 28. Nd4 {[%emt 0:00:03]} Kb6 {[%emt 0:00:28]} 29. Bg3 {[%emt 0:00:12]} Bd7 {[%emt 0:00:10]} 30. Bf2 {[%emt 0:00:05]} Ka6 {[%emt 0:00:02]} 31. Nb3 {[%emt 0:00:06]} Nc7 {[%emt 0:00:25]} 32. Bc5 {[%emt 0:00:02]} Bd8 {[%emt 0:00:04]} 33. Bf8 {[%emt 0:00:04]} Kb7 {[%emt 0:00:04]} 34. Bxg7 {[%emt 0:00:04]} Kc8 {[%emt 0:00:01]} 35. Nd4 {[%emt 0:00:09]} h5 {[%emt 0:00:03]} 36. Be5 {[%emt 0:00:03]} Kb7 {[%emt 0:00:01]} 37. g3 {[%emt 0:00:05]} Nd5 {[%emt 0:00:01]} 38. Bxb5 {[%emt 0:00:05]} Bxb5 {[%emt 0:00:02]} 39. Nxb5 f6 40. Bd4 {[%emt 0:00:14]} Kc6 {[%emt 0:00:02]} 41. Na3 {[%emt 0:00:04]} e5 {[%emt 0:00:01]} 42. Bf2 {[%emt 0:00:01]} Bb6 {[%emt 0:00:02]} 43. Bxb6 {[%emt 0:00:04]} Kxb6 {[%emt 0:00:02]} 44. Kb3 {[%emt 0:00:01]} Ne3 {[%emt 0:00:01]} 45. c4 {[%emt 0:00:04]} Nf1 {[%emt 0:00:02]} 46. c5+ {[%emt 0:00:01]} Kc6 {[%emt 0:00:02]} 47. Nc2 {[%emt 0:00:15]} Nxh2 {[%emt 0:00:02]} 48. Kc4 {[%emt 0:00:03]} Nxf3 49. b5+ Kc7 {[%emt 0:00:04]} 50. b6+ {[%emt 0:00:02]} Kb7 {[%emt 0:00:02]} 51. Kb5 {[%emt 0:00:01]} Nd2 {[%emt 0:00:08]} 52. c6+ {[%emt 0:00:01]} Kc8 {[%emt 0:00:01]} 53. b7+ {[%emt 0:00:05]} Kc7 {[%emt 0:00:03]} 54. Nb4 {[%emt 0:00:00]} Ne4 {[%emt 0:00:02]} 55. Na6+ {[%emt 0:00:01]} 1-0

[Event "RUS-ch Women Blitz 2019"]
[Site "Sochi"]
[Date "2019.10.17"]
[Round "8.6"]
[White "Bivol, Alina"]
[Black "Maltsevskaya, Aleksandra"]
[Result "0-1"]
[ECO "E68"]
[WhiteElo "2371"]
[BlackElo "2333"]
[Annotator "RC"]
[PlyCount "75"]
[EventDate "2019.10.17"]
[EventType "swiss"]
[EventCountry "RUS"]
[SourceTitle "playchess.com"]
[Source "ChessBase"]
[SourceQuality "1"]
[TimeControl "180+2"]

1. c4 {[%emt 0:00:00]} Nf6 {[%emt 0:00:00]} 2. g3 {[%emt 0:00:00]} g6 {[%emt 0:00:01]} 3. Bg2 {[%emt 0:00:03]} Bg7 {[%emt 0:00:02]} 4. d4 {[%emt 0:00:01]} d6 {[%emt 0:00:01]} 5. Nc3 {[%emt 0:00:02]} O-O {[%emt 0:00:02]} 6. Nf3 {[%emt 0:00:01]} Nbd7 {[%emt 0:00:03]} 7. O-O {[%emt 0:00:03]} e5 {[%emt 0:00:01]} 8. e4 {[%emt 0:00:00]} exd4 {[%emt 0:00:03]} 9. Nxd4 {[%emt 0:00:01]} Nc5 {[%emt 0:00:01]} 10. Re1 {[%emt 0:00:01]} Ng4 {[%emt 0:00:02]} 11. Nb3 {[%emt 0:00:44]} Ne5 {[%emt 0:00:22]} 12. Nxc5 {[%emt 0:00:10]} dxc5 {[%emt 0:00:01]} 13. Qe2 {[%emt 0:00:42]} Qd4 {[%emt 0:00:27]} 14. Be3 {[%emt 0:00:06]} Qxc4 {[%emt 0:00:02]} 15. Qxc4 {[%emt 0:00:00]} Nxc4 {[%emt 0:00:01]} 16. Bxc5 {[%emt 0:00:01]} Re8 {[%emt 0:00:01]} 17. Nd5 {[%emt 0:00:04]} Nxb2 {[%emt 0:00:34]} 18. Nxc7 {[%emt 0:00:13]} Nd3 {[%emt 0:00:01]} 19. Nxe8 {[%emt 0:00:22]} Bxa1 {[%emt 0:00:01]} 20. Rxa1 {[%emt 0:00:00]} Nxc5 {[%emt 0:00:02]} 21. Rc1 {[%emt 0:00:10]} b6 {[%emt 0:00:19]} 22. e5 {[%emt 0:00:14]} Rb8 {[%emt 0:00:01]} 23. Nf6+ {[%emt 0:00:11]} Kg7 {[%emt 0:00:01]} 24. a3 {[%emt 0:00:00]} Be6 {[%emt 0:00:05]} 25. Rd1 {[%emt 0:00:08]} a5 {[%emt 0:00:12]} 26. h4 {[%emt 0:00:03]} b5 {[%emt 0:00:06]} 27. h5 {[%emt 0:00:18]} b4 {[%emt 0:00:03]} 28. axb4 {[%emt 0:00:01]} axb4 {[%emt 0:00:01]} 29. Bd5 {[%emt 0:00:09]} b3 {[%emt 0:00:01]} 30. Bxe6 {[%emt 0:00:02]} fxe6 {[%emt 0:00:10]} 31. Rb1 {[%emt 0:00:03]} b2 {[%emt 0:00:01]} 32. hxg6 {[%emt 0:00:02]} hxg6 {[%emt 0:00:02]} 33. Kf1 {[%emt 0:00:01]} Na4 {[%emt 0:00:01]} 34. Ne4 {[%emt 0:00:02]} Rc8 {[%emt 0:00:03]} 35. Nd2 {[%emt 0:00:05]} Rc1+ 36. Kg2 Rc2 {[%emt 0:00:07]} 37. Ne4 {[%emt 0:00:02]} Re2 {[%emt 0:00:07]} 38. Nd6 {[%emt 0:00:11]} 0-1

[Event "RUS-ch Women Blitz 2019"]
[Site "Sochi"]
[Date "2019.10.17"]
[Round "8.8"]
[White "Lysenko, Margarita"]
[Black "Karavaeva, Olga"]
[Result "1-0"]
[ECO "D36"]
[WhiteElo "2243"]
[BlackElo "2260"]
[Annotator "NA RC"]
[PlyCount "52"]
[EventDate "2019.10.17"]
[EventType "swiss"]
[EventCountry "RUS"]
[SourceTitle "playchess.com"]
[Source "ChessBase"]
[SourceQuality "1"]
[TimeControl "180+2"]

1. d4 {[%emt 0:00:00]} d5 {[%emt 0:00:00]} 2. c4 {[%emt 0:00:00]} e6 {[%emt 0:00:00]} 3. Nc3 {[%emt 0:00:02]} c6 {[%emt 0:00:00]} 4. cxd5 {[%emt 0:00:02]} exd5 {[%emt 0:00:01]} 5. Qc2 {[%emt 0:00:01]} Nf6 {[%emt 0:00:02]} 6. Bg5 {[%emt 0:00:04]} Be7 {[%emt 0:00:05]} 7. e3 {[%emt 0:00:01]} h6 {[%emt 0:00:02]} 8. Bf4 {[%emt 0:00:08]} O-O {[%emt 0:00:07]} 9. Bd3 {[%emt 0:00:05]} Bd6 {[%emt 0:00:02]} 10. Bxd6 {[%emt 0:00:10]} Qxd6 {[%emt 0:00:02]} 11. h3 {[%emt 0:00:10]} Re8 {[%emt 0:00:05]} 12. Nf3 {[%emt 0:00:06]} Nbd7 {[%emt 0:00:02]} 13. g4 {[%emt 0:00:08]} Nf8 {[%emt 0:00:23]} 14. O-O-O {[%emt 0:00:14]} b5 {[%emt 0:00:01]} 15. g5 {[%emt 0:00:22]} hxg5 {[%emt 0:00:07]} 16. Nxg5 {[%emt 0:00:01]} a5 {[%emt 0:00:18]} 17. Rhg1 {[%emt 0:00:05]} b4 {[%emt 0:00:05]} 18. Ne2 {[%emt 0:00:03]} Ba6 {[%emt 0:00:02]} 19. Ng3 {[%emt 0:00:22]} Bxd3 {[%emt 0:00:06]} 20. Qxd3 {[%emt 0:00:01]} Qd7 {[%emt 0:01:07]} 21. Nf5 {[%emt 0:00:09]} Ng6 {[%emt 0:00:05]} 22. h4 {[%emt 0:00:11]} Ne4 {[%emt 0:00:09]} 23. Nxg7 {[%emt 0:00:36]} Kxg7 {[%emt 0:00:01]} 24. h5 {[%emt 0:00:00]} Nxf2 {[%emt 0:00:26]} 25. Qf1 {[%emt 0:00:04]} Nxd1 {[%emt 0:00:17]} 26. Nxf7 {[%emt 0:00:12]} Re6 1-0

[Event "RUS-ch Women Blitz 2019"]
[Site "Sochi"]
[Date "2019.10.17"]
[Round "8.11"]
[White "Serditykh, Olesya"]
[Black "Goltseva, Ekaterina"]
[Result "1-0"]
[ECO "D24"]
[WhiteElo "1990"]
[BlackElo "2317"]
[Annotator "NA RC"]
[PlyCount "49"]
[EventDate "2019.10.17"]
[EventType "swiss"]
[EventCountry "RUS"]
[SourceTitle "playchess.com"]
[Source "ChessBase"]
[SourceQuality "1"]
[TimeControl "180+2"]

1. d4 {[%emt 0:00:00]} d5 {[%emt 0:00:00]} 2. Nf3 {[%emt 0:00:01]} Nf6 {[%emt 0:00:00]} 3. c4 {[%emt 0:00:00]} dxc4 {[%emt 0:00:00]} 4. Nc3 {[%emt 0:00:02]} a6 {[%emt 0:00:23]} 5. a4 {[%emt 0:00:02]} Nc6 {[%emt 0:00:01]} 6. e4 {[%emt 0:00:02]} Bg4 {[%emt 0:00:02]} 7. d5 {[%emt 0:00:35]} Ne5 {[%emt 0:00:29]} 8. Be2 {[%emt 0:00:06]} Bxf3 {[%emt 0:00:06]} 9. gxf3 {[%emt 0:00:03]} e6 {[%emt 0:00:18]} 10. f4 {[%emt 0:01:16]} Nd3+ {[%emt 0:00:02]} 11. Bxd3 {[%emt 0:00:02]} cxd3 {[%emt 0:00:00]} 12. Qxd3 {[%emt 0:00:06]} exd5 {[%emt 0:00:03]} 13. e5 {[%emt 0:00:26]} Nd7 {[%emt 0:00:10]} 14. Qxd5 {[%emt 0:00:08]} Nc5 {[%emt 0:00:19]} 15. O-O {[%emt 0:00:21]} Qxd5 {[%emt 0:00:22]} 16. Nxd5 {[%emt 0:00:01]} O-O-O {[%emt 0:00:02]} 17. Rd1 {[%emt 0:00:04]} Nb3 {[%emt 0:00:31]} 18. Rb1 {[%emt 0:00:03]} Bc5 {[%emt 0:00:06]} 19. Be3 {[%emt 0:00:04]} c6 {[%emt 0:00:09]} 20. Nc3 {[%emt 0:00:11]} Kc7 {[%emt 0:00:23]} 21. Ne4 {[%emt 0:00:01]} Bxe3 {[%emt 0:00:07]} 22. fxe3 {[%emt 0:00:00]} Rhf8 {[%emt 0:00:06]} 23. Kf2 {[%emt 0:00:05]} f5 {[%emt 0:00:03]} 24. Ng5 {[%emt 0:00:02]} Rfe8 {[%emt 0:00:06]} 25. Rxd8 {[%emt 0:00:02]} 1-0

[Event "RUS-ch Women Blitz 2019"]
[Site "Sochi"]
[Date "2019.10.17"]
[Round "9.1"]
[White "Kovanova, Baira"]
[Black "Belenkaya, Dina"]
[Result "0-1"]
[ECO "A07"]
[WhiteElo "2344"]
[BlackElo "2300"]
[Annotator "NA RC"]
[PlyCount "142"]
[EventDate "2019.10.17"]
[EventType "swiss"]
[EventCountry "RUS"]
[SourceTitle "playchess.com"]
[Source "ChessBase"]
[SourceQuality "1"]
[TimeControl "180+2"]

1. Nf3 {[%emt 0:00:00]} d5 {[%emt 0:00:00]} 2. g3 {[%emt 0:00:00]} c6 {[%emt 0:00:01]} 3. Bg2 {[%emt 0:00:01]} Nf6 {[%emt 0:00:02]} 4. O-O {[%emt 0:00:03]} Bg4 {[%emt 0:00:02]} 5. d3 {[%emt 0:00:06]} e6 {[%emt 0:00:03]} 6. Nbd2 {[%emt 0:00:01]} Be7 {[%emt 0:00:20]} 7. h3 {[%emt 0:00:07]} Bh5 {[%emt 0:00:01]} 8. e4 {[%emt 0:00:17]} dxe4 {[%emt 0:00:08]} 9. dxe4 {[%emt 0:00:01]} O-O {[%emt 0:00:19]} 10. Qe2 {[%emt 0:00:15]} Nbd7 {[%emt 0:00:23]} 11. b3 {[%emt 0:00:03]} e5 {[%emt 0:00:22]} 12. Bb2 {[%emt 0:00:04]} Qc7 {[%emt 0:00:02]} 13. Rfe1 {[%emt 0:00:13]} Rfe8 {[%emt 0:00:02]} 14. Qf1 {[%emt 0:00:33]} Bc5 {[%emt 0:00:03]} 15. Nh4 {[%emt 0:00:26]} Bg6 {[%emt 0:00:12]} 16. Qe2 {[%emt 0:00:09]} a5 {[%emt 0:00:04]} 17. a4 {[%emt 0:00:03]} Rad8 {[%emt 0:00:06]} 18. Nc4 {[%emt 0:00:06]} b6 {[%emt 0:00:41]} 19. Rad1 {[%emt 0:00:21]} b5 {[%emt 0:00:08]} 20. axb5 {[%emt 0:00:05]} cxb5 {[%emt 0:00:01]} 21. Na3 {[%emt 0:00:01]} b4 {[%emt 0:00:21]} 22. Nc4 {[%emt 0:00:01]} Bh5 {[%emt 0:00:11]} 23. g4 {[%emt 0:00:07]} Bg6 {[%emt 0:00:01]} 24. Ra1 {[%emt 0:00:05]} Ra8 {[%emt 0:00:02]} 25. Nf5 {[%emt 0:00:02]} Ra7 {[%emt 0:00:08]} 26. Red1 {[%emt 0:00:05]} Nf8 {[%emt 0:00:03]} 27. Qf3 {[%emt 0:00:12]} N6d7 {[%emt 0:00:03]} 28. Ncd6 {[%emt 0:00:16]} Rd8 {[%emt 0:00:04]} 29. Nb5 {[%emt 0:00:01]} Qb6 {[%emt 0:00:01]} 30. Nxa7 {[%emt 0:00:01]} Qxa7 {[%emt 0:00:01]} 31. Bc1 {[%emt 0:00:04]} f6 {[%emt 0:00:01]} 32. Be3 {[%emt 0:00:03]} Rc8 {[%emt 0:00:02]} 33. Nd6 {[%emt 0:00:01]} Rc7 {[%emt 0:00:02]} 34. Nb5 {[%emt 0:00:01]} Qb6 {[%emt 0:00:01]} 35. Nxc7 {[%emt 0:00:02]} Qxc7 {[%emt 0:00:01]} 36. Qe2 {[%emt 0:00:01]} Bd6 {[%emt 0:00:02]} 37. Qc4+ {[%emt 0:00:01]} Bf7 {[%emt 0:00:02]} 38. Qxc7 {[%emt 0:00:01]} Bxc7 {[%emt 0:00:01]} 39. Bf1 {[%emt 0:00:01]} Nb8 {[%emt 0:00:02]} 40. Bb5 {[%emt 0:00:04]} Ne6 {[%emt 0:00:02]} 41. Bc4 {[%emt 0:00:01]} Kf8 {[%emt 0:00:01]} 42. Kf1 {[%emt 0:00:03]} Ke7 {[%emt 0:00:01]} 43. Ke2 {[%emt 0:00:01]} Nc6 {[%emt 0:00:02]} 44. Bxe6 {[%emt 0:00:02]} Bxe6 {[%emt 0:00:02]} 45. Bc5+ {[%emt 0:00:00]} Ke8 {[%emt 0:00:01]} 46. Bd6 {[%emt 0:00:02]} Bb6 {[%emt 0:00:00]} 47. Kf1 {[%emt 0:00:03]} Nd4 {[%emt 0:00:01]} 48. Rd2 {[%emt 0:00:03]} Nf3 {[%emt 0:00:02]} 49. Rd3 {[%emt 0:00:02]} Nd4 {[%emt 0:00:01]} 50. c3 {[%emt 0:00:02]} Nxb3 {[%emt 0:00:02]} 51. Rb1 {[%emt 0:00:03]} Bc4 {[%emt 0:00:01]} 52. Rxb3 {[%emt 0:00:01]} Bxb3 {[%emt 0:00:02]} 53. cxb4 {[%emt 0:00:03]} Bc4 {[%emt 0:00:01]} 54. Ke2 {[%emt 0:00:01]} axb4 {[%emt 0:00:03]} 55. Bxb4 {[%emt 0:00:04]} Bxd3+ {[%emt 0:00:01]} 56. Kxd3 {[%emt 0:00:01]} Bxf2 {[%emt 0:00:01]} 57. Kc4 {[%emt 0:00:01]} Kf7 {[%emt 0:00:02]} 58. Kd5 {[%emt 0:00:01]} Kg6 {[%emt 0:00:01]} 59. Bd2 {[%emt 0:00:00]} h5 {[%emt 0:00:02]} 60. Ke6 {[%emt 0:00:01]} hxg4 {[%emt 0:00:02]} 61. hxg4 {[%emt 0:00:01]} Bg3 {[%emt 0:00:02]} 62. Ke7 {[%emt 0:00:05]} Bf4 {[%emt 0:00:01]} 63. Be1 {[%emt 0:00:01]} Kg5 {[%emt 0:00:01]} 64. Kf7 {[%emt 0:00:01]} g6 {[%emt 0:00:02]} 65. Bb4 {[%emt 0:00:01]} Kxg4 {[%emt 0:00:04]} 66. Kxg6 {[%emt 0:00:02]} Bg5 {[%emt 0:00:02]} 67. Be1 {[%emt 0:00:19]} Kf4 {[%emt 0:00:01]} 68. Kh5 {[%emt 0:00:01]} Kxe4 {[%emt 0:00:01]} 69. Kg4 {[%emt 0:00:01]} Be3 {[%emt 0:00:01]} 70. Kg3 {[%emt 0:00:02]} f5 {[%emt 0:00:01]} 71. Kg2 {[%emt 0:00:00]} f4 {[%emt 0:00:01]} 0-1

[Event "RUS-ch Women Blitz 2019"]
[Site "Sochi"]
[Date "2019.10.17"]
[Round "9.2"]
[White "Semenova, Elena"]
[Black "Bodnaruk, Anastasia"]
[Result "0-1"]
[ECO "B53"]
[WhiteElo "2282"]
[BlackElo "2419"]
[Annotator "NA"]
[PlyCount "118"]
[EventDate "2019.10.17"]
[EventType "swiss"]
[EventCountry "RUS"]
[SourceTitle "playchess.com"]
[Source "ChessBase"]
[SourceQuality "1"]
[TimeControl "180+2"]

1. e4 {[%emt 0:00:00]} c5 {[%emt 0:00:00]} 2. Nf3 {[%emt 0:00:00]} d6 {[%emt 0:00:00]} 3. d4 {[%emt 0:00:01]} cxd4 {[%emt 0:00:00]} 4. Qxd4 {[%emt 0:00:01]} a6 {[%emt 0:00:02]} 5. c4 {[%emt 0:00:06]} Nc6 {[%emt 0:00:01]} 6. Qe3 {[%emt 0:00:01]} g6 {[%emt 0:00:05]} 7. Be2 {[%emt 0:00:01]} Bg7 {[%emt 0:00:03]} 8. Nc3 {[%emt 0:00:03]} Nf6 {[%emt 0:00:09]} 9. h3 {[%emt 0:00:02]} O-O {[%emt 0:00:01]} 10. O-O {[%emt 0:00:01]} Nd7 {[%emt 0:00:04]} 11. Rd1 {[%emt 0:00:07]} Nc5 {[%emt 0:00:06]} 12. Rb1 {[%emt 0:00:06]} f5 {[%emt 0:00:02]} 13. b4 {[%emt 0:00:43]} f4 {[%emt 0:00:02]} 14. Qd2 {[%emt 0:00:05]} Ne6 {[%emt 0:00:01]} 15. Nd5 {[%emt 0:00:11]} Ned4 {[%emt 0:00:08]} 16. Bb2 {[%emt 0:00:12]} Nxf3+ {[%emt 0:00:10]} 17. Bxf3 {[%emt 0:00:01]} Bxb2 {[%emt 0:00:02]} 18. Rxb2 {[%emt 0:00:09]} Ne5 {[%emt 0:00:01]} 19. Qe2 {[%emt 0:00:10]} e6 {[%emt 0:00:03]} 20. Nc3 {[%emt 0:00:05]} Qc7 {[%emt 0:00:01]} 21. Rc2 {[%emt 0:00:24]} Bd7 {[%emt 0:00:14]} 22. Qd2 {[%emt 0:00:27]} Nxc4 {[%emt 0:00:26]} 23. Qd4 {[%emt 0:00:01]} Rac8 {[%emt 0:00:38]} 24. Bg4 {[%emt 0:00:20]} b5 {[%emt 0:00:22]} 25. Be2 {[%emt 0:00:09]} f3 {[%emt 0:00:36]} 26. Bxf3 {[%emt 0:00:03]} Rfd8 {[%emt 0:00:16]} 27. Bg4 {[%emt 0:00:03]} Ne5 {[%emt 0:00:04]} 28. Rdc1 {[%emt 0:00:08]} Qb8 {[%emt 0:00:10]} 29. Ne2 {[%emt 0:00:05]} Rc4 {[%emt 0:00:02]} 30. Rxc4 {[%emt 0:00:01]} bxc4 {[%emt 0:00:02]} 31. a3 {[%emt 0:00:03]} h5 {[%emt 0:00:02]} 32. Bf3 {[%emt 0:00:02]} Nxf3+ 33. gxf3 {[%emt 0:00:00]} e5 {[%emt 0:00:07]} 34. Qd5+ {[%emt 0:00:02]} Kg7 {[%emt 0:00:01]} 35. Rxc4 {[%emt 0:00:05]} Bxh3 {[%emt 0:00:04]} 36. Rc6 {[%emt 0:00:03]} Qb7 {[%emt 0:00:03]} 37. Qc4 {[%emt 0:00:03]} Qe7 {[%emt 0:00:01]} 38. Rc7 {[%emt 0:00:02]} Rd7 {[%emt 0:00:01]} 39. Rxd7 {[%emt 0:00:03]} Bxd7 {[%emt 0:00:01]} 40. Kf1 {[%emt 0:00:03]} Bb5 {[%emt 0:00:03]} 41. Qc3 {[%emt 0:00:02]} Qf6 {[%emt 0:00:02]} 42. Ke1 {[%emt 0:00:01]} h4 {[%emt 0:00:01]} 43. Qc7+ {[%emt 0:00:02]} Kh6 {[%emt 0:00:01]} 44. Ng1 {[%emt 0:00:04]} Qg5 {[%emt 0:00:03]} 45. Nh3 {[%emt 0:00:02]} Qg2 {[%emt 0:00:02]} 46. Qc8 {[%emt 0:00:03]} Qf1+ {[%emt 0:00:02]} 47. Kd2 {[%emt 0:00:01]} Qe2+ {[%emt 0:00:04]} 48. Kc1 {[%emt 0:00:05]} Qe1+ {[%emt 0:00:02]} 49. Kc2 {[%emt 0:00:03]} Qe2+ {[%emt 0:00:01]} 50. Kc1 {[%emt 0:00:00]} Qe1+ {[%emt 0:00:02]} 51. Kc2 {[%emt 0:00:01]} Ba4+ {[%emt 0:00:02]} 52. Kd3 {[%emt 0:00:05]} Qd1+ {[%emt 0:00:03]} 53. Ke3 {[%emt 0:00:01]} Qe1+ {[%emt 0:00:01]} 54. Kd3 {[%emt 0:00:00]} Qd1+ {[%emt 0:00:02]} 55. Ke3 {[%emt 0:00:01]} Qd4+ {[%emt 0:00:03]} 56. Ke2 {[%emt 0:00:01]} Bb5+ {[%emt 0:00:01]} 57. Ke1 {[%emt 0:00:01]} Qa1+ {[%emt 0:00:02]} 58. Kd2 {[%emt 0:00:02]} Qb2+ {[%emt 0:00:01]} 59. Ke3 {[%emt 0:00:05]} Qe2# {[%emt 0:00:01] Kd4} 0-1

[Event "RUS-ch Women Blitz 2019"]
[Site "Sochi"]
[Date "2019.10.17"]
[Round "9.3"]
[White "Maltsevskaya, Aleksandra"]
[Black "Voit, Daria"]
[Result "1-0"]
[ECO "B72"]
[WhiteElo "2333"]
[BlackElo "2336"]
[Annotator "NA"]
[PlyCount "107"]
[EventDate "2019.10.17"]
[EventType "swiss"]
[EventCountry "RUS"]
[SourceTitle "playchess.com"]
[Source "ChessBase"]
[SourceQuality "1"]
[TimeControl "180+2"]

1. e4 {[%emt 0:00:00]} c5 {[%emt 0:00:00]} 2. Nf3 {[%emt 0:00:03]} d6 {[%emt 0:00:00]} 3. d4 {[%emt 0:00:01]} cxd4 {[%emt 0:00:00]} 4. Nxd4 {[%emt 0:00:02]} Nf6 {[%emt 0:00:01]} 5. Nc3 {[%emt 0:00:01]} g6 {[%emt 0:00:02]} 6. Be3 {[%emt 0:00:07]} Bg7 {[%emt 0:00:01]} 7. Bc4 {[%emt 0:00:01]} Nc6 {[%emt 0:00:01]} 8. f3 {[%emt 0:00:02]} O-O {[%emt 0:00:02]} 9. Bb3 {[%emt 0:00:01]} Bd7 {[%emt 0:00:05]} 10. Qd2 {[%emt 0:00:01]} Na5 {[%emt 0:00:15]} 11. O-O-O {[%emt 0:00:04]} Rb8 {[%emt 0:00:02]} 12. h4 {[%emt 0:00:07]} b5 {[%emt 0:00:02]} 13. Qe2 {[%emt 0:00:18]} a6 {[%emt 0:00:53]} 14. g4 {[%emt 0:00:03]} e5 {[%emt 0:00:03]} 15. Nf5 {[%emt 0:00:02]} Nxb3+ {[%emt 0:00:28]} 16. axb3 {[%emt 0:00:02]} gxf5 {[%emt 0:00:01]} 17. gxf5 {[%emt 0:00:23]} b4 {[%emt 0:00:02]} 18. Nd5 {[%emt 0:00:16]} Nxd5 {[%emt 0:00:02]} 19. Rxd5 {[%emt 0:00:01]} Bb5 {[%emt 0:00:36]} 20. Qg2 {[%emt 0:00:03]} f6 {[%emt 0:00:02]} 21. h5 {[%emt 0:00:09]} Kf7 {[%emt 0:00:24]} 22. h6 {[%emt 0:00:28]} Bh8 {[%emt 0:00:01]} 23. Rhd1 {[%emt 0:00:01]} Qa5 {[%emt 0:00:04]} 24. Kb1 {[%emt 0:00:06]} Rfd8 {[%emt 0:00:01]} 25. Qh3 {[%emt 0:00:10]} Qc7 {[%emt 0:00:09]} 26. f4 {[%emt 0:00:13]} Rbc8 {[%emt 0:00:05]} 27. fxe5 {[%emt 0:00:21]} dxe5 {[%emt 0:00:21]} 28. Qh5+ {[%emt 0:00:22]} Ke7 {[%emt 0:00:00]} 29. Bc5+ {[%emt 0:00:01]} Qxc5 {[%emt 0:00:02]} 30. Rxc5 {[%emt 0:00:00]} Rxd1+ {[%emt 0:00:02]} 31. Qxd1 {[%emt 0:00:02]} Rxc5 {[%emt 0:00:01]} 32. Qg1 {[%emt 0:00:02]} Rc8 {[%emt 0:00:04]} 33. Qa7+ {[%emt 0:00:01]} Kd6 {[%emt 0:00:03]} 34. Qxh7 {[%emt 0:00:09]} Bc6 {[%emt 0:00:01]} 35. Qf7 {[%emt 0:00:02]} Bxe4 {[%emt 0:00:03]} 36. Qe6+ {[%emt 0:00:01]} Kc7 {[%emt 0:00:01]} 37. Qe7+ {[%emt 0:00:05]} Kb8 {[%emt 0:00:02]} 38. Qxb4+ {[%emt 0:00:02]} Bb7 {[%emt 0:00:01]} 39. Qd6+ {[%emt 0:00:01]} Ka7 {[%emt 0:00:02]} 40. Qe6 {[%emt 0:00:05]} Rd8 {[%emt 0:00:04]} 41. c4 {[%emt 0:00:02]} Ka8 {[%emt 0:00:07]} 42. b4 {[%emt 0:00:01]} Rc8 {[%emt 0:00:04]} 43. b3 {[%emt 0:00:02]} Rc6 {[%emt 0:00:01]} 44. Qe8+ {[%emt 0:00:02]} Rc8 {[%emt 0:00:00]} 45. Qe6 {[%emt 0:00:01]} Rc6 {[%emt 0:00:01]} 46. Qe7 {[%emt 0:00:01]} Rc8 {[%emt 0:00:01]} 47. Kb2 {[%emt 0:00:06]} Rb8 {[%emt 0:00:02]} 48. b5 {[%emt 0:00:03]} Rc8 {[%emt 0:00:02]} 49. h7 {[%emt 0:00:14]} axb5 {[%emt 0:00:02]} 50. cxb5 {[%emt 0:00:01]} Kb8 {[%emt 0:00:05]} 51. b6 {[%emt 0:00:01]} Rc6 {[%emt 0:00:03]} 52. Qd8+ {[%emt 0:00:02]} Rc8 {[%emt 0:00:01]} 53. Qd6+ {[%emt 0:00:01]} Ka8 {[%emt 0:00:01]} 54. Qa3+ {[%emt 0:00:01]} 1-0